bitfinex-derivatives/quotes_SOLF0:USTF0_20250216
["timestamp","ask_amount","ask_price","bid_price","bid_amount"]
[1739748073362,3.2325,188.63,188.61,8.75393895]
[1739748075468,58.4699726,188.64,188.61,14.05503895]
[1739748075769,58.4699726,188.64,188.63,8.75393895]
[1739748076061,58.4699726,188.67,188.63,8.75393895]
[1739748076265,58.4699726,188.67,188.66,8.75393895]
[1739748076871,63.7693726,188.67,188.65,0.03494512]
[1739748077363,58.4699726,188.67,188.64,8.79067878]
[1739748078568,1.629,188.68,188.66,8.75393895]
[1739748078967,6.9996,188.69,188.66,8.75393895]
[1739748079669,60.1242726,188.72,188.68,8.75393895]
[1739748080166,5.2986,188.7,188.68,8.79110179]
[1739748080763,60.1242726,188.72,188.68,0.03716284]
[1739748080969,5.2989,188.69,188.68,0.03716284]
[1739748081170,8.75393895,188.71,188.64,8.75393895]
[1739748081569,8.75393895,188.69,188.62,8.75393895]
[1739748081768,8.75393895,188.65,188.6,8.75393895]
[1739748081972,8.75393895,188.65,188.46,3.3555]
[1739748081973,5.301,188.62,188.58,8.75393895]
[1739748082169,8.75393895,188.65,188.58,8.75393895]
[1739748082369,0.03927866,188.62,188.58,0.03476903]
[1739748082673,8.75393895,188.63,188.56,8.75393895]
[1739748082867,0.03355827,188.62,188.58,0.03564574]
[1739748083066,0.03355827,188.62,188.58,8.78958469]
[1739748083661,0.03355827,188.62,188.58,14.09158469]
[1739748084063,0.03355827,188.62,188.6,8.75393895]
[1739748084571,0.03355827,188.62,188.58,5.33764574]
[1739748084766,0.03355827,188.62,188.6,5.3014]
[1739748084972,0.03355827,188.62,188.6,13.65939055]
[1739748086168,0.03355827,188.62,188.6,18.96069055]
[1739748086368,0.03355827,188.62,188.6,5.3013]
[1739748086569,0.03355827,188.62,188.58,3.27784574]
[1739748087070,0.03355827,188.62,188.6,5.3012]
[1739748087265,0.03355827,188.62,188.58,0.03564574]
[1739748088473,0.03355827,188.62,188.58,5.33754574]
[1739748088769,0.03355827,188.62,188.58,0.03564574]
[1739748089763,0.03355827,188.62,188.59,5.3016]
[1739748089969,0.03355827,188.62,188.58,0.03564574]
[1739748090570,0.03355827,188.62,188.6,13.65939055]
[1739748090970,0.03355827,188.62,188.61,5.3011]
[1739748091362,0.03355827,188.62,188.6,13.65939055]
[1739748091774,0.03355827,188.62,188.59,5.3014]
[1739748092868,0.03355827,188.62,188.58,0.03564574]
[1739748093275,5.3014,188.6,188.58,0.03564574]
[1739748093876,5.3017,188.59,188.58,0.03564574]
[1739748097783,16.75179055,188.61,188.51,13.65939055]
[1739748098083,16.75179055,188.61,188.49,5.3044]
[1739748098376,5.303,188.55,188.49,5.3044]
[1739748098876,5.33894147,188.54,188.5,0.03411537]
[1739748100280,5.3034,188.53,188.5,0.03411537]
[1739748100982,5.33904147,188.54,188.5,0.03411537]
[1739748101275,0.03584147,188.54,188.5,0.03411537]
[1739748102180,0.03584147,188.54,188.51,5.3039]
[1739748102380,0.03584147,188.54,188.5,0.03411537]
[1739748103676,0.03584147,188.54,188.51,5.3039]
[1739748104081,0.03584147,188.54,188.51,13.65939055]
[1739748104280,0.03584147,188.54,188.53,5.3034]
[1739748106978,1.6941,188.65,188.58,5.3018]
[1739748107382,1.6941,188.65,188.56,13.65939055]
[1739748108078,5.3009,188.62,188.56,13.65939055]
[1739748108279,5.3009,188.62,188.59,0.03399423]
[1739748108280,5.33721429,188.62,188.59,0.03399423]
[1739748109181,5.3012,188.61,188.59,0.03399423]
[1739748110786,0.03631429,188.62,188.59,0.03399423]
[1739748110993,5.33721429,188.62,188.59,0.03399423]
[1739748112190,5.3011,188.61,188.59,0.03399423]
[1739748112390,0.03631429,188.62,188.59,0.03399423]
[1739748112888,5.3011,188.61,188.59,0.03399423]
[1739748114893,0.03631429,188.62,188.59,0.03399423]
[1739748115094,0.03631429,188.62,188.61,5.3011]
[1739748116292,0.03631429,188.62,188.6,8.74326826]
[1739748118598,5.33721429,188.62,188.6,8.74326826]
[1739748120700,5.3011,188.61,188.59,0.03399423]
[1739748120900,0.03631429,188.62,188.59,0.03399423]
[1739748122102,5.3014,188.6,188.59,0.03399423]
[1739748123403,5.3027,188.56,188.54,8.74326826]
[1739748123698,5.3027,188.56,188.52,8.74326826]
[1739748124603,5.34342043,188.56,188.52,8.78027189]
[1739748126101,5.3028,188.55,188.52,8.78027189]
[1739748126297,0.04072043,188.56,188.54,8.74326826]
[1739748127205,0.04072043,188.56,188.52,8.78027189]
[1739748129107,0.04072043,188.56,188.52,14.08387189]
[1739748129311,0.04072043,188.56,188.52,8.78027189]
[1739748129909,0.04072043,188.56,188.54,8.74326826]
[1739748130609,194.0,188.63,188.54,8.74326826]
[1739748130802,58.4699726,188.64,188.6,8.74326826]
[1739748131200,73.37312183,188.62,188.6,8.74326826]
[1739748132305,73.37312183,188.62,188.6,14.04466826]
[1739748132805,73.37312183,188.62,188.61,5.3011]
[1739748133909,0.03335908,188.63,188.61,5.3011]
[1739748134109,0.03335908,188.63,188.62,8.74326826]
[1739748135004,0.03335908,188.63,188.62,14.04406826]
[1739748135614,0.03335908,188.63,188.62,8.74326826]
[1739748138913,0.03335908,188.63,188.59,0.0359395]
[1739748140214,5.33395908,188.63,188.59,0.0359395]
[1739748140811,5.3009,188.62,188.59,0.0359395]
[1739748141007,0.03335908,188.63,188.59,0.0359395]
[1739748141414,0.03335908,188.63,188.59,5.3375395]
[1739748141805,0.03335908,188.63,188.59,0.0359395]
[1739748143216,5.3009,188.62,188.59,0.0359395]
[1739748143516,0.03335908,188.63,188.59,0.0359395]
[1739748143811,5.33415908,188.63,188.59,0.0359395]
[1739748144816,5.33415908,188.63,188.59,5.3376395]
[1739748146418,5.3009,188.62,188.59,0.0359395]
[1739748147912,5.3011,188.61,188.59,0.0359395]
[1739748151618,5.301,188.62,188.59,0.0359395]
[1739748152120,0.03335908,188.63,188.59,0.0359395]
[1739748152722,5.3014,188.61,188.59,0.0359395]
[1739748154025,0.03335908,188.63,188.59,0.0359395]
[1739748154320,5.3014,188.6,188.59,0.0359395]
[1739748156222,5.3012,188.61,188.59,0.0359395]
[1739748156619,0.03335908,188.63,188.59,0.0359395]
[1739748157119,5.3014,188.6,188.59,0.0359395]
[1739748166133,5.3025,188.57,188.52,8.74326826]
[1739748166430,5.3025,188.57,188.52,14.04686826]
[1739748167028,5.3025,188.57,188.53,5.3033]
[1739748167224,0.03430093,188.56,188.53,5.3432195]
[1739748168935,5.3029,188.55,188.53,0.0399195]
[1739748172635,5.3031,188.54,188.53,0.0399195]
[1739748173638,14.04616826,188.55,188.53,0.0399195]
[1739748174337,8.74326826,188.55,188.53,0.0399195]
[1739748174537,5.3031,188.54,188.53,0.0399195]
[1739748174737,7.10605425,188.56,188.53,0.0399195]
[1739748174938,0.03430093,188.56,188.53,0.0399195]
[1739748175940,0.03430093,188.56,188.53,5.3432195]
[1739748179544,0.03430093,188.56,188.54,5.303]
[1739748181045,0.03430093,188.56,188.53,0.0399195]
[1739748183344,0.03430093,188.56,188.54,5.3031]
[1739748183744,0.03430093,188.56,188.53,0.0399195]
[1739748184539,0.03430093,188.56,188.54,5.303]
[1739748185444,0.03430093,188.56,188.54,5.3031]
[1739748186038,0.03430093,188.56,188.55,5.3028]
[1739748186345,0.03430093,188.56,188.53,7.11167282]
[1739748186644,0.03430093,188.56,188.53,12.41497282]
[1739748187241,0.03430093,188.56,188.53,7.11167282]
[1739748189247,0.03430093,188.56,188.53,12.41497282]
[1739748189744,0.03430093,188.56,188.53,7.11167282]
[1739748190745,0.03430093,188.56,188.53,12.41497282]
[1739748191850,0.03430093,188.56,188.54,5.303]
[1739748193149,0.03430093,188.56,188.53,7.11167282]
[1739748193351,0.03430093,188.56,188.54,5.3029]
[1739748193845,0.03430093,188.56,188.55,12.37455332]
[1739748196252,63.7705726,188.63,188.58,5.3017]
[1739748196550,63.7705726,188.63,188.58,12.37345332]
[1739748197152,5.3006,188.63,188.58,12.37345332]
[1739748197652,0.03499764,188.62,188.59,0.03425973]
[1739748199245,5.3011,188.61,188.59,0.03425973]
[1739748200053,5.33579764,188.62,188.59,0.03425973]
[1739748200452,0.03499764,188.62,188.59,0.03425973]
[1739748201254,5.3011,188.61,188.59,0.03425973]
[1739748202653,5.33589764,188.62,188.59,0.03425973]
[1739748203153,0.03499764,188.62,188.59,0.03425973]
[1739748203357,5.3011,188.61,188.59,0.03425973]
[1739748204351,5.33589764,188.62,188.59,0.03425973]
[1739748204551,0.03499764,188.62,188.59,0.03425973]
[1739748204859,5.33609764,188.62,188.59,0.03425973]
[1739748205454,0.03499764,188.62,188.59,0.03425973]
[1739748205655,5.3011,188.61,188.59,0.03425973]
[1739748206151,5.33589764,188.62,188.59,0.03425973]
[1739748207456,5.3011,188.61,188.59,0.03425973]
[1739748211868,5.3014,188.6,188.59,0.03425973]
[1739748214668,5.3012,188.61,188.59,0.03425973]
[1739748214864,0.03499764,188.62,188.59,0.03425973]
[1739748216870,5.3013,188.61,188.59,0.03425973]
[1739748217567,0.03499764,188.62,188.59,0.03425973]
[1739748218672,5.3011,188.61,188.59,0.03425973]
[1739748219663,0.03499764,188.62,188.59,0.03425973]
[1739748220470,5.33599764,188.62,188.59,0.03425973]
[1739748224676,0.03499764,188.62,188.59,0.03425973]
[1739748225975,5.33589764,188.62,188.59,0.03425973]
[1739748226173,0.03499764,188.62,188.59,0.03425973]
[1739748228177,0.03499764,188.62,188.6,5.3014]
[1739748228976,0.03499764,188.62,188.59,0.03425973]
[1739748229176,0.03499764,188.62,188.6,5.3014]
[1739748232078,0.03499764,188.62,188.59,5.33585973]
[1739748232274,0.03499764,188.62,188.59,0.03425973]
[1739748234073,0.03499764,188.62,188.59,5.33595973]
[1739748234473,0.03499764,188.62,188.59,0.03425973]
[1739748234669,0.03499764,188.62,188.61,5.3011]
[1739748235173,0.03499764,188.62,188.61,12.36390868]
[1739748237076,58.4699726,188.67,188.64,5.3]
[1739748237276,58.4699726,188.67,188.65,7.06280868]
[1739748237678,58.4699726,188.67,188.66,5.2997]
[1739748238081,58.4699726,188.67,188.65,7.06280868]
[1739748238381,58.4699726,188.67,188.65,7.10067513]
[1739748238584,58.4699726,188.67,188.65,12.40057513]
[1739748239270,58.4699726,188.67,188.65,12.39728707]
[1739748239473,58.4699726,188.67,188.66,5.2997]
[1739748239676,58.4699726,188.67,188.65,7.09738707]
[1739748240880,58.4699726,188.67,188.66,5.2997]
[1739748241084,145.30276931,188.7,188.65,7.09738707]
[1739748241085,5.2988,188.7,188.65,7.09738707]
[1739748241481,5.2988,188.7,188.65,12.39738707]
[1739748241973,7.05952062,188.69,188.65,0.03786645]
[1739748242178,7.05952062,188.67,188.65,0.03786645]
[1739748242784,7.05952062,188.67,188.57,7.05952062]
[1739748242982,7.05952062,188.64,188.55,7.05952062]
[1739748243182,7.05952062,188.62,188.55,7.05952062]
[1739748243382,7.05952062,188.6,188.53,7.05952062]
[1739748243884,0.03786645,188.58,188.55,0.03433762]
[1739748244883,5.3023,188.57,188.55,0.03433762]
[1739748245283,7.05952062,188.56,188.55,0.03433762]
[1739748246078,12.36202062,188.56,188.55,0.03433762]
[1739748246288,0.03786645,188.58,188.55,0.03433762]
[1739748247482,5.33996645,188.58,188.55,0.03433762]
[1739748247787,0.03786645,188.58,188.55,0.03433762]
[1739748256693,0.03786645,188.58,188.56,5.3025]
[1739748257385,0.03786645,188.58,188.55,0.03433762]
[1739748257591,0.03786645,188.58,188.55,5.33703762]
[1739748258283,0.03786645,188.58,188.56,5.3025]
[1739748259798,0.03786645,188.58,188.57,12.36172062]
[1739748276409,6.645e-05,188.58,188.57,12.36172062]
[1739748281319,8.64902062,188.68,188.57,7.05952062]
[1739748281519,8.64902062,188.68,188.62,7.05952062]
[1739748281818,13.94842062,188.68,188.62,7.05952062]
[1739748282219,13.94842062,188.68,188.63,5.3004]
[1739748282519,13.94842062,188.68,188.64,0.03456188]
[1739748284624,1.5895,188.68,188.64,5.33476188]
[1739748285118,1.5895,188.68,188.64,0.03456188]
[1739748285324,1.5895,188.68,188.65,5.3]
[1739748286328,1.5895,188.68,188.64,5.33476188]
[1739748287328,6.8887,188.68,188.64,5.33476188]
[1739748287621,1.5895,188.68,188.65,5.3]
[1739748287821,6.8887,188.68,188.64,0.03456188]
[1739748289427,6.8887,188.68,188.64,5.33476188]
[1739748291232,13.93862062,188.7,188.64,0.03456188]
[1739748291428,8.63982062,188.7,188.64,0.03456188]
[1739748292131,8.63982062,188.7,188.64,5.33466188]
[1739748292325,8.63982062,188.7,188.64,0.03456188]
[1739748293829,5.2993,188.68,188.64,0.03456188]
[1739748294533,5.2993,188.68,188.64,5.33476188]
[1739748297733,5.2989,188.69,188.64,5.33476188]
[1739748297928,1.5803,188.7,188.66,5.2996]
[1739748298133,202.75302062,188.72,188.66,5.2996]
[1739748298937,5.2986,188.7,188.66,5.2996]
[1739748300138,194.0,188.72,188.64,7.0940825]
[1739748300340,58.4699726,188.73,188.66,7.05952062]
[1739748300736,7.05952062,188.74,188.66,7.05952062]
[1739748301137,5.2983,188.71,188.68,0.0370202]
[1739748301638,7.05952062,188.74,188.68,0.0370202]
[1739748301639,5.2982,188.72,188.68,0.0370202]
[1739748301838,7.05952062,188.74,188.68,0.0370202]
[1739748304841,5.2986,188.7,188.68,0.0370202]
[1739748307437,7.05952062,188.7,188.62,7.05952062]
[1739748307636,7.05952062,188.66,188.6,7.05952062]
[1739748307843,7.05952062,188.66,188.58,7.05952062]
[1739748308039,7.05952062,188.64,188.56,7.05952062]
[1739748308340,7.05952062,188.62,188.54,7.05952062]
[1739748308742,0.0370202,188.6,188.56,0.03521056]
[1739748308933,5.3017,188.59,188.56,0.03521056]
[1739748309133,7.09654082,188.6,188.56,0.03521056]
[1739748310242,5.3022,188.58,188.56,0.03521056]
[1739748311442,7.09654082,188.6,188.56,0.03521056]
[1739748312641,1.6714,188.59,188.56,0.03521056]
[1739748313241,1.6714,188.59,188.46,1.6268]
[1739748313242,7.05952062,188.58,188.5,7.05952062]
[1739748313532,7.05952062,188.56,188.5,7.05952062]
[1739748314141,12.36212062,188.56,188.5,7.05952062]
[1739748314339,0.03592152,188.55,188.51,0.03883289]
[1739748315242,5.3031,188.54,188.51,0.03883289]
[1739748315442,12.36262062,188.54,188.51,0.03883289]
[1739748316644,7.05952062,188.54,188.51,0.03883289]
[1739748317643,12.36262062,188.54,188.51,0.03883289]
[1739748318545,7.05952062,188.54,188.51,0.03883289]
[1739748318740,5.3034,188.53,188.51,0.03883289]
[1739748320142,7.05952062,188.54,188.51,0.03883289]
[1739748320344,7.05952062,188.52,188.44,7.05952062]
[1739748320543,5.3042,188.51,188.45,5.3055]
[1739748321043,7.05952062,188.52,188.45,5.3055]
[1739748321241,7.05952062,188.52,188.44,7.05952062]
[1739748321445,7.09524269,188.5,188.47,0.03709114]
[1739748321743,7.05952062,188.5,188.47,0.03709114]
[1739748321944,7.09607867,188.5,188.47,0.03709114]
[1739748322941,12.40057867,188.5,188.47,0.03709114]
[1739748323138,7.09607867,188.5,188.47,0.03709114]
[1739748324544,0.03655805,188.5,188.47,0.03709114]
[1739748327252,5.34085805,188.5,188.47,0.03709114]
[1739748327950,5.3048,188.48,188.47,0.03709114]
[1739748328150,12.36432062,188.48,188.47,0.03709114]
[1739748328752,7.05952062,188.48,188.47,0.03709114]
[1739748328955,5.3046,188.49,188.47,0.03709114]
[1739748329154,7.09607867,188.5,188.47,0.03709114]
[1739748330057,12.40057867,188.5,188.47,0.03709114]
[1739748330253,7.09607867,188.5,188.47,0.03709114]
[1739748330653,12.40047867,188.5,188.47,0.03709114]
[1739748334260,5.3045,188.49,188.47,0.03709114]
[1739748334461,7.09607867,188.5,188.47,0.03709114]
[1739748334761,5.3045,188.49,188.47,0.03709114]
[1739748335163,7.09607867,188.5,188.47,0.03709114]
[1739748335461,5.3047,188.49,188.47,0.03709114]
[1739748335953,7.09607867,188.5,188.47,0.03709114]
[1739748336563,5.3048,188.49,188.47,0.03709114]
[1739748336961,7.09607867,188.5,188.47,0.03709114]
[1739748337854,5.3048,188.48,188.47,0.03709114]
[1739748338457,5.3058,188.45,188.4,7.05952062]
[1739748338663,7.05952062,188.46,188.38,7.05952062]
[1739748338863,7.05952062,188.52,188.44,7.05952062]
[1739748339067,7.05952062,188.54,188.47,7.05952062]
[1739748339366,7.05952062,188.48,188.41,7.05952062]
[1739748339559,5.3057,188.45,188.37,7.05952062]
[1739748339759,7.09743924,188.46,188.43,0.03564614]
[1739748339955,0.03791862,188.46,188.43,7.05952062]
[1739748340156,0.03791862,188.46,188.43,7.09856246]
[1739748340764,0.03791862,188.46,188.45,5.3056]
[1739748341667,0.03791862,188.46,188.45,12.36512062]
[1739748352274,0.03791862,188.46,188.43,0.03904184]
[1739748352976,5.34331862,188.46,188.43,0.03904184]
[1739748353774,0.03791862,188.46,188.43,0.03904184]
[1739748354982,5.3056,188.45,188.43,0.03904184]
[1739748355182,0.03791862,188.46,188.43,0.03904184]
[1739748359584,0.03791862,188.46,188.45,12.36512062]
[1739748364885,0.03791862,188.46,188.45,7.05952062]
[1739748366190,0.03791862,188.46,188.45,12.36512062]
[1739748372094,0.03791862,188.46,188.45,7.05952062]
[1739748373094,0.03791862,188.46,188.45,12.36512062]
[1739748373397,0.03791862,188.46,188.45,7.05952062]
[1739748374097,0.03791862,188.46,188.43,7.09856246]
[1739748374294,0.03791862,188.46,188.43,0.03904184]
[1739748375996,0.03791862,188.46,188.45,7.05952062]
[1739748376495,0.03791862,188.46,188.45,12.36512062]
[1739748382597,1.862e-05,188.46,188.45,12.36512062]
[1739748382799,58.4699726,188.56,188.45,7.05952062]
[1739748383103,58.4699726,188.56,188.52,7.05952062]
[1739748383302,58.4699726,188.56,188.5,7.05952062]
[1739748383502,58.4699726,188.56,188.5,12.36342062]
[1739748383700,5.303,188.55,188.5,12.36342062]
[1739748384003,0.03552192,188.54,188.51,0.03619958]
[1739748384600,0.03552192,188.54,188.51,5.34009958]
[1739748385799,0.03552192,188.54,188.51,0.03619958]
[1739748386109,5.33872192,188.54,188.51,0.03619958]
[1739748387096,7.09504254,188.54,188.51,0.03619958]
[1739748388103,5.3042,188.5,188.46,7.05952062]
[1739748388306,5.3042,188.5,188.46,12.36482062]
[1739748389404,5.34472713,188.5,188.46,12.40252811]
[1739748390504,0.04052713,188.5,188.46,12.40252811]
[1739748391106,0.04052713,188.5,188.46,0.03770749]
[1739748391309,7.10004775,188.5,188.46,0.03770749]
[1739748391706,5.3049,188.48,188.46,0.03770749]
[1739748392512,7.10004775,188.5,188.46,0.03770749]
[1739748393112,5.305,188.48,188.46,0.03770749]
[1739748393311,7.10004775,188.5,188.46,0.03770749]
[1739748394113,5.305,188.48,188.46,0.03770749]
[1739748395320,0.04052713,188.5,188.46,12.40252811]
[1739748395711,0.04052713,188.5,188.46,7.09722811]
[1739748395917,0.04052713,188.5,188.48,7.05952062]
[1739748400418,0.04052713,188.5,188.48,12.36422062]
[1739748400818,0.04052713,188.5,188.48,7.05952062]
[1739748401918,0.04052713,188.5,188.46,7.09722811]
[1739748402524,0.04052713,188.5,188.48,5.3048]
[1739748402725,0.04052713,188.5,188.46,0.03770749]
[1739748403327,5.3045,188.49,188.46,0.03770749]
[1739748403827,0.04052713,188.5,188.46,0.03770749]
[1739748404021,5.3049,188.48,188.46,0.03770749]
[1739748404420,5.34482713,188.5,188.46,0.03770749]
[1739748406428,5.305,188.48,188.46,0.03770749]
[1739748409126,0.04052713,188.5,188.46,0.03770749]
[1739748411129,5.3047,188.49,188.46,0.03770749]
[1739748411329,0.04052713,188.5,188.46,0.03770749]
[1739748411730,5.3048,188.48,188.46,0.03770749]
[1739748414633,0.04052713,188.5,188.46,0.03770749]
[1739748414932,5.3046,188.49,188.46,0.03770749]
[1739748418133,5.3051,188.47,188.46,0.03770749]
[1739748420334,8.76102062,188.49,188.41,7.05952062]
[1739748420530,5.3058,188.45,188.41,7.05952062]
[1739748420730,7.05952062,188.45,188.37,12.36712062]
[1739748420936,7.05952062,188.45,188.37,7.05952062]
[1739748421135,7.05952062,188.47,188.39,7.05952062]
[1739748421336,8.76102062,188.49,188.41,12.36602062]
[1739748421536,0.0364594,188.45,188.41,12.40452734]
[1739748422132,0.0364594,188.45,188.41,7.09802734]
[1739748422337,5.3421594,188.45,188.41,7.09802734]
[1739748422539,0.0364594,188.45,188.41,7.09802734]
[1739748423239,0.0364594,188.45,188.41,12.40472734]
[1739748424143,0.0364594,188.45,188.41,7.09802734]
[1739748424336,0.0364594,188.45,188.41,0.03850672]
[1739748424733,5.3061,188.44,188.41,0.03850672]
[1739748425435,5.306,188.44,188.41,0.03850672]
[1739748426141,5.3062,188.43,188.41,0.03850672]
[1739748426943,5.3065,188.42,188.41,0.03850672]
[1739748428646,5.3073,188.4,188.35,12.36772062]
[1739748428943,7.05952062,188.41,188.33,7.05952062]
[1739748429141,7.05952062,188.39,188.31,7.05952062]
[1739748429739,0.03905654,188.37,188.33,0.03672634]
[1739748430245,5.34695654,188.37,188.33,0.03672634]
[1739748430637,0.03905654,188.37,188.33,0.03672634]
[1739748431645,0.03905654,188.37,188.33,5.34552634]
[1739748431847,0.03905654,188.37,188.33,7.09624696]
[1739748432741,0.03905654,188.37,188.35,7.05952062]
[1739748433346,0.03905654,188.37,188.36,5.3082]
[1739748434243,58.4699726,188.44,188.35,7.05952062]
[1739748434448,58.4699726,188.44,188.41,7.05952062]
[1739748434646,58.4699726,188.44,188.43,7.05952062]
[1739748435150,58.4699726,188.44,188.43,12.36572062]
[1739748435339,0.03965769,188.45,188.43,12.36572062]
[1739748435542,0.03965769,188.45,188.43,7.05952062]
[1739748438148,0.03965769,188.45,188.42,0.03592022]
[1739748443451,5.34525769,188.45,188.42,0.03592022]
[1739748446147,7.09917831,188.45,188.42,0.03592022]
[1739748446745,12.36572062,188.43,188.42,0.03592022]
[1739748447649,5.3074,188.39,188.35,7.05952062]
[1739748447848,5.3074,188.39,188.33,7.05952062]
[1739748448352,7.05952062,188.41,188.33,7.05952062]
[1739748448655,5.3071,188.4,188.33,7.05952062]
[1739748448955,0.03959319,188.39,188.35,0.03887179]
[1739748449351,0.03959319,188.39,188.36,5.3081]
[1739748449552,0.03959319,188.39,188.35,7.09839241]
[1739748449749,0.03959319,188.39,188.37,7.05952062]
[1739748450855,0.03959319,188.39,188.38,5.3076]
[1739748453154,7.05952062,188.47,188.37,7.05952062]
[1739748453347,201.05952062,188.49,188.42,5.3063]
[1739748453553,5.3048,188.48,188.42,12.36582062]
[1739748454353,0.0356433,188.47,188.43,0.03440519]
[1739748455253,7.09516392,188.47,188.43,0.03440519]
[1739748456656,5.3059,188.44,188.43,0.03440519]
[1739748458859,5.3055,188.46,188.43,0.03440519]
[1739748459057,7.09516392,188.47,188.43,0.03440519]
[1739748459451,12.40046392,188.47,188.43,0.03440519]
[1739748459655,7.09516392,188.47,188.43,0.03440519]
[1739748460559,5.3056,188.46,188.43,0.03440519]
[1739748460760,7.09516392,188.47,188.43,0.03440519]
[1739748461657,5.3057,188.45,188.43,0.03440519]
[1739748463951,0.0356433,188.47,188.36,5.308]
[1739748464159,7.05952062,188.38,188.31,7.05952062]
[1739748464463,7.05952062,188.38,188.29,64.03149895]
[1739748464464,7.05952062,188.36,188.29,71.09101957]
[1739748464659,7.05952062,188.36,188.27,10.34042062]
[1739748465061,7.05952062,188.34,188.27,3.2809]
[1739748465263,0.03513676,188.33,188.3,0.03983897]
[1739748465555,7.05952062,188.32,188.3,0.03983897]
[1739748465953,5.3096,188.31,188.3,0.03983897]
[1739748466264,0.03513676,188.33,188.3,0.03983897]
[1739748468059,11.0752766,188.31,188.21,3.3259]
[1739748468562,5.3104,188.28,188.21,3.3259]
[1739748469362,0.03904081,188.26,188.23,0.03640974]
[1739748470562,0.03904081,188.26,188.25,5.3113]
[1739748471468,4.081e-05,188.26,188.25,5.3113]
[1739748475770,8.6022,188.38,188.32,5.3092]
[1739748476070,3.2943,188.38,188.27,11.0752766]
[1739748476270,1.6388,188.42,188.27,11.0752766]
[1739748476465,5.3072,188.4,188.3,11.0752766]
[1739748477066,0.03700086,188.37,188.33,0.03805942]
[1739748477572,0.03700086,188.37,188.34,5.3085]
[1739748478177,0.03700086,188.37,188.33,0.03805942]
[1739748478369,0.03700086,188.37,188.35,5.3084]
[1739748478565,0.03700086,188.37,188.33,0.03805942]
[1739748478770,0.03700086,188.37,188.33,11.11333602]
[1739748478965,0.03700086,188.37,188.36,5.3082]
[1739748481581,8.6e-07,188.37,188.36,16.3834766]
[1739748484878,1.5789,188.47,188.38,5.3074]
[1739748485274,6.8842,188.47,188.38,5.3074]
[1739748485476,1.5789,188.47,188.36,11.0752766]
[1739748485876,0.03437896,188.43,188.4,0.03662303]
[1739748488085,5.34057896,188.43,188.4,0.03662303]
[1739748488285,0.03437896,188.43,188.4,0.03662303]
[1739748488778,5.3065,188.42,188.4,0.03662303]
[1739748489685,0.03437896,188.43,188.4,0.03662303]
[1739748489893,5.34057896,188.43,188.4,0.03662303]
[1739748490187,0.03437896,188.43,188.4,0.03662303]
[1739748490384,5.3067,188.41,188.4,0.03662303]
[1739748498688,12.38836356,188.41,188.4,0.03662303]
[1739748502694,5.3067,188.41,188.4,0.03662303]
[1739748503596,0.03437896,188.43,188.4,0.03662303]
[1739748504295,5.34067896,188.43,188.4,0.03662303]
[1739748504597,0.03437896,188.43,188.4,0.03662303]
[1739748507798,0.03437896,188.43,188.41,7.08166356]
[1739748508799,0.03437896,188.43,188.41,12.38836356]
[1739748509400,0.03437896,188.43,188.41,7.08166356]
[1739748510399,0.03437896,188.43,188.41,12.38826356]
[1739748511498,0.03437896,188.43,188.41,7.08166356]
[1739748512198,0.03437896,188.43,188.42,5.3065]
[1739748512799,0.03437896,188.43,188.41,7.08166356]
[1739748514198,0.03437896,188.43,188.42,5.3065]
[1739748519111,7.896e-05,188.43,188.42,5.3065]
[1739748531022,7.896e-05,188.43,188.41,10.38446356]
[1739748531023,7.896e-05,188.43,188.41,7.08166356]
[1739748531211,7.896e-05,188.43,188.41,12.38836356]
[1739748531417,7.896e-05,188.43,188.41,7.08166356]
[1739748532118,7.896e-05,188.43,188.42,5.3065]
[1739748535221,6.955,188.53,188.48,5.3047]
[1739748535421,6.955,188.53,188.48,12.38636356]
[1739748535819,1.6514,188.53,188.49,5.3042]
[1739748536021,8.5182,188.54,188.49,5.3042]
[1739748536228,3.2151,188.54,188.5,7.08166356]
[1739748536425,0.03610782,188.53,188.52,7.08166356]
[1739748536619,60.0887726,188.58,188.52,7.08166356]
[1739748536819,7.08166356,188.57,188.5,7.12185316]
[1739748537121,0.03528693,188.54,188.5,0.0401896]
[1739748538324,7.08166356,188.53,188.5,0.0401896]
[1739748538514,7.08166356,188.51,188.42,7.08166356]
[1739748538721,5.3053,188.47,188.41,5.3067]
[1739748538922,5.3053,188.47,188.4,7.08166356]
[1739748539426,5.3053,188.47,188.4,12.38866356]
[1739748539627,0.04007645,188.45,188.42,7.1156325]
[1739748540127,0.04007645,188.45,188.42,12.4220325]
[1739748540524,0.04007645,188.45,188.42,7.1156325]
[1739748541819,0.04007645,188.45,188.44,12.38756356]
[1739748543125,7.645e-05,188.45,188.44,12.38756356]
[1739748543322,58.4699726,188.52,188.48,5.3047]
[1739748543526,58.4699726,188.52,188.48,12.38636356]
[1739748543729,58.4699726,188.52,188.48,7.08166356]
[1739748543922,7.08166356,188.51,188.44,12.38726356]